Cogmind - Beta 12 @@@ ROGUE MODE // 2023.10.31 @ 18:09:28 Player: monistgf Result: Destroyed by D-53 Grenadier with Mini Grenade Launcher Performance ------------- Evolutions (0) 0 Regions Visited (4) 800 Robots Destroyed (11) 55 Value Destroyed (323) 323 Prototype IDs (0) 0 Alien Tech Used (0) 0 Bonus (288) 288 TOTAL SCORE: 1466 Bonus ------- Aligned with FarCom 300 Friendly Fire -12 Cogmind --------- Core Integrity 0/250 Matter 241/300 Energy 35/100 System Corruption 8% Temperature Cool (0) Movement Core (350) Ox6 Location -9/Mines Parts ------- > --- POWER (1) -------- (None) > --- PROPULSION (2) --- (None) > --- UTILITY (2) ------ Large Storage Unit > --- WEAPON (2) ------- (None) > --- INVENTORY (15) --- Light Treads Improved Heat Sink Targeting Computer Targeting Computer Rocket Launcher Explosive Trap Explosive Trap Explosive Trap Explosive Trap Explosive Trap Peak State ------------ > --- POWER ------------ Light Nuclear Core > --- PROPULSION ------- Compact Wheel Compact Wheel > --- UTILITY ---------- Improved Heat Sink Large Storage Unit > --- WEAPON ----------- EM Pulse Gun Small Laser > --- INVENTORY -------- Ion Engine Ion Engine Light Treads Light Treads Aluminum Leg Aluminum Leg Heat Sink Heat Sink Visual Processing Unit Signal Interpreter Propulsion Shielding Medium Laser Small Laser [Rating: 12] Favorites ----------- Power Improved Ion Engine Engine Improved Ion Engine Power Core Light Nuclear Core Propulsion Compact Wheel Treads Light Treads Leg Aluminum Leg Wheel Compact Wheel Utility Large Storage Unit Device Improved Heat Sink Storage Large Storage Unit Protection Light Armor Plating Weapon Medium Laser Energy Gun Medium Laser Ballistic Gun Heavy Assault Rifle Build | -11 -10 -10 -10 -9 ------- Run | Jun Mat Min Exi Min Slots Evolved . | . . . . . Power . | . . . . . Propulsion . | . . . . . Utility . | . . . . . Weapon . | . . . . . Parts Attached 23 | . 7 8 . 8 Power 5 | . 2 1 . 2 Engine 4 | . 1 1 . 2 Core 1 | . 1 . . . Reactor . | . . . . . Propulsion 7 | . 2 1 . 4 Treads 3 | . . 1 . 2 Leg 2 | . . . . 2 Wheel 2 | . 2 . . . Hover . | . . . . . Flight . | . . . . . Utility 6 | . 3 2 . 1 Device 3 | . 2 1 . . Storage 1 | . 1 . . . Processor . | . . . . . Hackware . | . . . . . Protection 2 | . . 1 . 1 Artifact . | . . . . . Weapon 5 | . . 4 . 1 Energy Gun 4 | . . 3 . 1 Energy Cannon . | . . . . . Ballistic Gun 1 | . . 1 . . Ballistic Cannon . | . . . . . Launcher . | . . . . . Special Weapon . | . . . . . Impact Weapon . | . . . . . Slashing Weapon . | . . . . . Piercing Weapon . | . . . . . Special Melee Weapon . | . . . . . Unidentified Prototypes . | . . . . . Parts Lost 13 | . . 2 . 11 Power 2 | . . . . 2 Propulsion 5 | . . 1 . 4 Utility 2 | . . . . 2 Weapon 4 | . . 1 . 3 Highest Loss Streak 11 | . . 1 . 11 To Critical Strikes . | . . . . . Average Slot Usage (%) 98 | . 100 100 100 95 Engine 9 | . 11 5 14 12 Core 3 | . 2 8 . . Treads 11 | . . 10 14 14 Wheel 16 | . 25 17 14 12 Device 5 | . 14 9 . . Storage 14 | . 14 14 14 14 Protection 8 | . . 4 14 12 Energy Gun 19 | . 28 22 14 14 Ballistic Gun 8 | . . 5 14 12 Naked Turns . | . . . . . Heaviest Build 35 | 11 29 35 35 35 Greatest Support 40 | 20 32 32 16 40 Greatest Overweight (x) 2 | . . 2 2 2 Average Overweight (x) 1 | . . 1 2 1 Largest Inventory Capacity 15 | . 15 15 15 15 Average Capacity 14 | . 14 15 15 15 Most Carried 15 | . 12 15 15 15 Average Carried 13 | . 7 14 15 14 Final Capacity 15 | 8 15 15 15 15 Final Carried 15 | 6 12 15 15 10 Class Distribution -------------------- 100% | Mutant Dominant Class ---------------- Mutant | -10/Materials Mutant | -10/Mines Mutant | -10/Exiles Mutant | -9/Mines Resources | -11 -10 -10 -10 -9 ----------- Run | Jun Mat Min Exi Min Matter Collected 368 | 200 70 55 . 43 Remotely . | . . . . . Salvage Created 504 | . 177 239 . 88 Parts 19 | . 7 12 . . Haulers Intercepted . | . . . . . Recyclers Shooed 1 | . 1 . . . Parts Field Recycled . | . . . . . Retrieved Matter . | . . . . . Parts Self-Destructed . | . . . . . Prevented . | . . . . . Kills | -11 -10 -10 -10 -9 ------- Run | Jun Mat Min Exi Min Combat Hostiles Destroyed 18 | . 3 7 . 8 Guns 17 | . 3 6 . 8 AOE 1 | . . 1 . . Classes Destroyed 4 | . 2 1 . 1 Watcher 1 | . 1 . . . Swarmer 3 | . . 3 . . Grunt 7 | . 3 4 . . Assembled 8 | . . . . 8 Best Kill Streak 4 | . 3 3 . 4 Combat Bots Only 4 | . 2 3 . 4 Max Kills in Single Turn 2 | . 1 1 . 2 Gunslinging . | . . . . . Exploded 1 | . . 1 . . Melee . | . . . . . Uniques/NPCs Destroyed . | . . . . . Combat | -11 -10 -10 -10 -9 -------- Run | Jun Mat Min Exi Min Damage Taken 1589 | . 93 205 . 1291 Core 281 | . 10 50 . 221 Absorbed by Shields . | . . . . . Redirected to Shielding 11 | . . . . 11 Core Remaining (%) 100 | 100 . . . . Volleys Fired 56 | . 10 16 . 30 Largest 2 | . 2 2 . 2 Hottest 115 | . 80 90 . 115 Shots Fired 102 | . 20 31 . 51 Gun 102 | . 20 31 . 51 Cannon . | . . . . . Launcher . | . . . . . Special . | . . . . . Kinetic 19 | . . . . 19 Thermal 64 | . 10 22 . 32 Explosive . | . . . . . Electromagnetic 19 | . 10 9 . . Robot Hit Streak 13 | . 8 13 . 5 Robot Miss Streak 8 | . 1 2 . 8 Penetration Max . | . . . . . Secondary Targets 2 | . 1 . . 1 Max Gunslinging Chain 1 | . 1 . . 1 Shots Hit Robots 66 | . 16 23 . 27 Core Hits 43 | . 8 12 . 23 Critical Kills . | . . . . . Critical Parts Destroyed . | . . . . . Critical Strikes . | . . . . . Melee Attacks . | . . . . . Impact . | . . . . . Slashing . | . . . . . Piercing . | . . . . . Sneak Attacks . | . . . . . Combat Hostiles . | . . . . . Follow-up Attacks . | . . . . . Damage Inflicted 1005 | . 205 355 . 445 Guns 951 | . 205 301 . 445 Cannons . | . . . . . Explosions 54 | . . 54 . . Melee . | . . . . . Ramming . | . . . . . Kinetic 193 | . . . . 193 Thermal 581 | . 80 249 . 252 Explosive . | . . . . . Electromagnetic 231 | . 125 106 . . Impact . | . . . . . Slashing . | . . . . . Piercing . | . . . . . Highest Corruption 8 | . . . . 8 Average Corruption 7 | . . . . 7 Corruption Purged . | . . . . . Corruption Blocked . | . . . . . Effects 2 | . . . . 2 Parts Rejected 2 | . . . . 2 Overload Shots . | . . . . . Overflow Damage . | . . . . . Projectiles . | . . . . . Explosions . | . . . . . Melee . | . . . . . Knockbacks . | . . . . . Impact . | . . . . . Kinetic . | . . . . . Secondary . | . . . . . Self-Inflicted Damage . | . . . . . Shots . | . . . . . Rammed . | . . . . . Targets Rammed . | . . . . . Kicked . | . . . . . Crushed . | . . . . . Highest Temperature 310 | . 19 28 . 310 Average Temperature 107 | . 8 15 . 138 Received Heat Transfer 324 | . 57 87 . 180 Siege Activations . | . . . . . Robots Corrupted . | . . . . . Combat Hostiles . | . . . . . Parts Fried . | . . . . . Impact Corruptions . | . . . . . Robots Melted . | . . . . . Combat Hostiles . | . . . . . Parts Melted 2 | . . 2 . . Heat Transferred 1231 | . 175 558 . 498 Parts Sabotaged . | . . . . . Parts Stolen . | . . . . . Parts Stripped . | . . . . . Power Chain Reactions 1 | . . 1 . . Missiles Intercepted . | . . . . . Alert | -11 -10 -10 -10 -9 ------- Run | Jun Mat Min Exi Min Peak Influence 192 | . 92 192 . . Initial 35 | . . 35 . . Average 71 | . 39 127 . . Maximum Alert Level . | . . . . . Low Security (%) 100 | . 100 100 . 100 Level 1 . | . . . . . Level 2 . | . . . . . Level 3 . | . . . . . Level 4 . | . . . . . Level 5 . | . . . . . High Security . | . . . . . Max Security . | . . . . . Squads Dispatched . | . . . . . Investigation . | . . . . . Extermination . | . . . . . Reinforcement . | . . . . . Assault . | . . . . . Garrison . | . . . . . Intercept . | . . . . . Searches Triggered . | . . . . . Construction Impeded . | . . . . . Haulers Reinforced . | . . . . . Active Scanning Responses . | . . . . . Cargo Convoy Interrupts . | . . . . . Stealth | -11 -10 -10 -10 -9 --------- Run | Jun Mat Min Exi Min Distress Signals . | . . . . . Communications Jammed . | . . . . . Distress Signals . | . . . . . Times Spotted 26 | . 4 8 . 14 Peak Tracking Total 7 | . 2 3 . 7 Tactical Retreats 1 | . . . . 1 Traps | -11 -10 -10 -10 -9 ------- Run | Jun Mat Min Exi Min Traps Triggered 1 | . 1 . . . Indirectly . | . . . . . Trap Hack Attempts . | . . . . . Triggered . | . . . . . Disarmed . | . . . . . Reprogrammed . | . . . . . Reused . | . . . . . Traps Extracted . | . . . . . Installed . | . . . . . Triggered . | . . . . . Most Traps Carried 5 | . . 5 5 5 Machines | -11 -10 -10 -10 -9 ---------- Run | Jun Mat Min Exi Min Machines Disabled . | . . . . . Max in Single Turn . | . . . . . Machines Repaired . | . . . . . Machines Sabotaged . | . . . . . Overloaded Fab Kills . | . . . . . Hacking | -11 -10 -10 -10 -9 --------- Run | Jun Mat Min Exi Min Machines Accessed . | . . . . . Terminals . | . . . . . Fabricators . | . . . . . Repair Stations . | . . . . . Recycling Units . | . . . . . Scanalyzers . | . . . . . Garrison Access . | . . . . . Total Hacks . | . . . . . Successful . | . . . . . Failed . | . . . . . Catastrophic . | . . . . . Database Lockouts . | . . . . . Manual . | . . . . . Terminals . | . . . . . Fabricators . | . . . . . Repair Stations . | . . . . . Recycling Units . | . . . . . Scanalyzers . | . . . . . Garrison Access . | . . . . . Terminal Hacks . | . . . . . Fabricator Hacks . | . . . . . Repair Station Hacks . | . . . . . Recycling Unit Hacks . | . . . . . Scanalyzer . | . . . . . Garrison Access Hacks . | . . . . . Unauthorized Hacks . | . . . . . Terminals . | . . . . . Fabricators . | . . . . . Repair Stations . | . . . . . Recycling Units . | . . . . . Scanalyzers . | . . . . . Garrison Access . | . . . . . Data Cores Recovered . | . . . . . Used . | . . . . . Hacking Detections . | . . . . . Full Trace Events . | . . . . . Feedback Events . | . . . . . Feedback Blocked . | . . . . . Robot Schematics Acquired . | . . . . . Robots Built . | . . . . . Authchips . | . . . . . Time . | . . . . . Total Robot Build Rating . | . . . . . Part Schematics Acquired . | . . . . . Parts Built . | . . . . . Authchips . | . . . . . Time . | . . . . . Total Part Build Rating . | . . . . . Parts Repaired . | . . . . . Time . | . . . . . Parts Recycled . | . . . . . Recycled Matter . | . . . . . Retrieved Matter . | . . . . . Retrieved Components . | . . . . . Parts Scanalyzed . | . . . . . Part Schematics Acquired . | . . . . . Parts Damaged . | . . . . . Bothacking | -11 -10 -10 -10 -9 ------------ Run | Jun Mat Min Exi Min Used RIF Installer . | . . . . . Robots Hacked . | . . . . . Non-combat . | . . . . . Combat . | . . . . . Robot Hacks Applied . | . . . . . Relay Couplers Released . | . . . . . Fabnet Peak Effective % . | . . . . . Robots Rewired . | . . . . . Allies Hacked . | . . . . . Hacks Repelled . | . . . . . Allies | -11 -10 -10 -10 -9 -------- Run | Jun Mat Min Exi Min Total Allies 2 | . . . . 2 Largest Group 2 | . . . . 2 Highest-Rated Group 45 | . . . . 45 Highest-Rated Ally 31 | . . . . 31 Total Orders . | . . . . . Ally Attacks 1 | . . . . 1 Total Damage 21 | . . . . 21 Kills 1 | . . . . 1 Allies Corrupted . | . . . . . Allies Melted . | . . . . . Intel | -11 -10 -10 -10 -9 ------- Run | Jun Mat Min Exi Min Robot Analysis Total . | . . . . . Derelict Logs Recovered 1 | . . . . 1 Drone Launches . | . . . . . Drone Recoveries . | . . . . . Exploration | -11 -10 -10 -10 -9 ------------- Run | Jun Mat Min Exi Min Turns Passed 1180 | . 113 512 203 352 Spaces Moved 711 | 1 62 315 157 176 Core . | . . . . . Treads 6 | . . 5 . 1 Legs 13 | 1 7 . . 5 Wheels 692 | . 55 310 157 170 Hover . | . . . . . Flight . | . . . . . Fastest Speed 100 | 120 100 100 130 130 Average Speed 122 | 120 102 117 130 131 Slowest Speed 240 | 120 120 240 130 190 Overloaded Moves . | . . . . . Propulsion Burnouts . | . . . . . Robots Hopped . | . . . . . Cave-ins Triggered . | . . . . . Exploration Rate (%) 32 | 2 19 48 55 40 Regions Visited 4 Branch Regions 3 Pre-discovered Areas . | . . . . . Known Exits Taken . | . . . . . Unknown Exits Taken 4 | 1 1 1 1 . Scrap Searched 2 | . . . . 2 Spaces Dug . | . . . . . Terrain Destroyed 7 | . . 7 . . Melee . | . . . . . Projectile . | . . . . . AOE 7 | . . 7 . . Terrain Rammed . | . . . . . Walls Destroyed . | . . . . . Machines Disabled . | . . . . . Actions | -11 -10 -10 -10 -9 --------- Run | Jun Mat Min Exi Min Total 924 | . 89 434 156 245 Wait 94 | . 3 64 . 27 Move 707 | . 61 314 156 176 Hop . | . . . . . Pick Up 25 | . 6 17 . 2 Fast Attach 6 | . 3 1 . 2 Attach 7 | . . 2 . 5 Detach 1 | . . 1 . . Swap 10 | . 4 5 . 1 Drop 18 | . 2 14 . 2 Fire 56 | . 10 16 . 30 Melee . | . . . . . Ram . | . . . . . Kick . | . . . . . Crush . | . . . . . Escape Stasis . | . . . . . Rewire . | . . . . . Trap . | . . . . . Miscellaneous . | . . . . . Route ------- -11/Junkyard -10/Materials -10/Mines (discovered 2 exits: [*Mat] / [*Exi]) -10/Exiles -9/Mines (discovered 1 exit: [*Mat]) History --------- Turn | Location | Event 1 | -11/Junkyard | Discovered new exit (range 0) 1 | -11/Junkyard | Entered Materials 97 | -10/Materials | Discovered new exit (range 6) 114 | -10/Materials | Entered Mines 116 | -10/Mines | Met a Derelict bent on vengeance 242 | -10/Mines | Discovered new exit (range 6) 290 | -10/Mines | Found a hidden stash of uninstalled traps 321 | -10/Mines | Build established: Mutant 374 | -10/Mines | Joined a pair of Derelicts in attacking an 0b10 outpost 619 | -10/Mines | Deemed a non-threat by the Exiles lab entrance 621 | -10/Mines | Discovered new exit (range 5) 626 | -10/Mines | Entered Exiles 658 | -10/Exiles | Met 8R-AWN 681 | -10/Exiles | Met EX-HEX 719 | -10/Exiles | Met EX-BIN 734 | -10/Exiles | Aligned with FarCom system 736 | -10/Exiles | Given EX-Vault access code 772 | -10/Exiles | Met EX-DEC 815 | -10/Exiles | Discovered new exit (range 14) 829 | -10/Exiles | Entered Mines 836 | -9/Mines | Received a Rocket Launcher from a helpful Derelict 868 | -9/Mines | Learned Materials terminal intel 932 | -9/Mines | Assembled infested the area 1110 | -9/Mines | Discovered new exit (range 16) 1150 | -9/Mines | Core integrity fell below 50% 1179 | -9/Mines | Core integrity fell below 20% 1181 | -9/Mines | Destroyed by D-53 Grenadier with Mini Grenade Launcher Last Messages --------------- 01141_ System corrupted by crushing effect (+1). 01144_ Propulsion Shielding destroyed. 01144_ System corrupted by crushing effect (+1). 01144_ Med. Laser destroyed. 01144_ System corrupted by crushing effect (+1). 01148_ System corrupted: Ion Engine rejected. 01148_ Acquired Ion Engine. 01150_ as-35738 destroyed. 01150_ as-13306 destroyed. 01152_ as-40378 destroyed. 01152_ Ion Engine destroyed. 01158_ as-01825 destroyed. 01167_ System corrupted: Lgt. Treads rejected. 01167_ Acquired Lgt. Treads. 01168_ as-39306 destroyed. 01168_ Lgt. Treads destroyed. 01178_ as-01737 sneak attacks. 01179_ The unstable cave ceiling collapses. 01180_ Aluminum Leg destroyed. 01180_ Spread Laser destroyed. Map ----- +----------------------------------------------------+ | ??# """ ##???? ?????????? | | ??# """ #????? ?????????? | | ??# """ #????# ????????? | | ?## #????# ????????? | | ?# #????## ????????? | | ?# ##?????# ????????? | | ?# ##??????# ?????????? | | ?## #????????????????????? | | ??# #????????????????????? | | ???# % #????????????????????? | | ???# = #????????????????????? | | ???# #????????????????????? | | ???# ##????????????????????? | | ???### #?????????????????????? | | ?????# #?????????????????????? | | ????##d #?????????????????????? | | ???## d##????????????????????? | | ???# #####????????????????? | | ???# #????????????????? | | ???## ##???????????????? | | ???## #???????????????? | | ??## #???????????????? | | ??# #???????????????? | | ??## #???????????????? | | ??# #???????????????? | | ??# @ ###???????????????? | | ???# ##????????????????? | | ???# ##?????????????????? | | ??# ##??????????????????? | | ??### #???????????????????? | | ????## u #???????????????????? | | ?????# #???????????????????? | | ?????# ##???????????????????? | | ?????# #????????????????????? | | ????? = #????????????????????? | | ????? %*=#????????????????????? | | ?????#!%*%????????????????????? | | ?????#=%%=????????????????????? | | ??????=<%a????????????????????? | | ??????! %!????????????????????? | | ??????%!=?????????????????????? | | ??????????????????????????????? | | ??????????????????????????????? | | ??????????????????????????????? | | ??????????????????????????????? | | ??????????????????????????????? | | ??????????????????????????????? | | ??????????????????????????????? | | ??????????????????????????????? | | ??????????????????????????????? | +----------------------------------------------------+ Best States ------------- Heat Dissipation 39 Energy Generation 14 Energy Capacity 265 Matter Stores 300 Matter Capacity 300 Sight Range 16 Terrain Scan Density 10 Armor Coverage 150 Propulsion Shielding 33 Evasion (%) 40 Recoil Reduction 2 Item Schematics ----------------- None Robot Schematics ------------------ None Fabricated ------------ Nothing Alien Tech Used ----------------- None Achievements -------------- None Challenges ------------ None Game ------ Seed DrainedMetafiberRegenerator Manual? 0 Play Time 00:12:20 Cumulative 147.0 hours Start 2023.10.31 @ 18:00:25 End 2023.10.31 @ 18:09:28 Sessions 1 Manual Loads 0 Difficulty Rogue Special Mode None Game No. 84 Rogue 84 Adventurer 0 Explorer 0 Win Type - Total 0 Types 0/0/0/0/0/0/0/0/0 Lore% 31 Gallery% 62 Achievement% 47 Wizard Run 0 Options --------- ASCII 0 Keyboard 1 Movement Numpad Keybinds 0 Fullscreen 1 Font 24/Smallcaps Map View 76x50 Tactical HUD 1 Map Filters NONE Filters NONE Steam 1 RUN: 7b08be40-fd9c-4eee-a635-1842361023c3